Cogmind - Beta 11.1 @@@ ROGUE MODE // 2022.05.09 @ 05:16:30 Player: AnthonyDPS 2004 Result: Destroyed by G-47 Trooper with Particle Gun Performance ------------- Evolutions (2) 1000 Regions Visited (4) 800 Robots Destroyed (12) 60 Value Destroyed (97) 97 Prototype IDs (1) 20 Alien Tech Used (0) 0 Bonus (0) 0 TOTAL SCORE: 1977 Bonus ------- None Cogmind --------- Core Integrity 0/550 Matter 193/300 Energy 76/100 System Corruption 2% Temperature Cool (18) Movement Core (50) Location -8/Materials Parts ------- > --- POWER (1) -------- (None) > --- PROPULSION (2) --- (None) > --- UTILITY (6) ------ Signal Interpreter Seismic Detector > --- WEAPON (2) ------- (None) > --- INVENTORY (5) ---- ECM Suite Peak State ------------ > --- POWER ------------ Light Deuterium Engine > --- PROPULSION ------- Airjet > --- UTILITY ---------- Visual Processing Unit Signal Interpreter Light Armor Plating System Shield > --- WEAPON ----------- Improved Grenade Launcher > --- INVENTORY -------- Trap Scanner Seismic Detector ECM Suite [Rating: 16] Favorites ----------- Power Ion Engine Engine Ion Engine Propulsion Wheel Wheel Wheel Hover Unit Hover Unit Utility Small Storage Unit Device Sensor Array Storage Small Storage Unit Processor Signal Interpreter Hackware System Shield Protection Light Armor Plating Weapon Small Laser Energy Gun Small Laser Ballistic Gun Light Assault Rifle Launcher Improved Grenade Launcher Special Melee Weapon Datajack Build | -11 -10 -10 -9 -8 ------- Run | Scr Mat Min Mat Mat Slots Evolved 4 | . . . 2 2 Power . | . . . . . Propulsion . | . . . . . Utility 4 | . . . 2 2 Weapon . | . . . . . Parts Attached 29 | 6 4 2 10 7 Power 4 | 1 . . 2 1 Engine 4 | 1 . . 2 1 Core . | . . . . . Reactor . | . . . . . Propulsion 6 | 2 . 2 1 1 Treads . | . . . . . Leg . | . . . . . Wheel 3 | 2 . . 1 . Hover 3 | . . 2 . 1 Flight . | . . . . . Utility 12 | 2 2 . 4 4 Device 6 | 1 1 . 2 2 Storage 1 | 1 . . . . Processor 2 | . 1 . 1 . Hackware 1 | . . . . 1 Protection 2 | . . . 1 1 Artifact . | . . . . . Weapon 7 | 1 2 . 3 1 Energy Gun 2 | 1 . . 1 . Energy Cannon . | . . . . . Ballistic Gun 1 | . 1 . . . Ballistic Cannon . | . . . . . Launcher 2 | . . . 1 1 Special Weapon . | . . . . . Impact Weapon . | . . . . . Slashing Weapon . | . . . . . Piercing Weapon . | . . . . . Special Melee Weapon 2 | . 1 . 1 . Unidentified Prototypes 1 | . . . 1 . Parts Lost 11 | . . . 5 6 Power 2 | . . . 1 1 Propulsion 4 | . . . 3 1 Utility 4 | . . . . 4 Weapon 1 | . . . 1 . Highest Loss Streak 5 | . . . 3 5 To Critical Strikes . | . . . . . Average Slot Usage (%) 71 | . 93 100 69 39 Engine 9 | . 14 14 9 4 Wheel 8 | . 28 . 1 . Hover 7 | . . 28 11 5 Device 7 | . 12 . 10 . Storage 8 | . 14 14 9 . Processor 13 | . 1 14 21 16 Hackware 1 | . . . . 6 Protection 2 | . . . 1 6 Energy Gun 6 | . 14 14 4 . Ballistic Gun 1 | . 4 . . . Special Melee Weapon 2 | . 3 14 . . Naked Turns . | . . . . . Heaviest Build 15 | 12 13 12 15 14 Greatest Support 20 | 20 20 12 12 8 Greatest Overweight (x) 4 | 3 . . 4 1 Average Overweight (x) . | . . . . . Largest Inventory Capacity 8 | 8 8 8 8 5 Average Capacity 7 | 7 8 8 7 5 Most Carried 8 | 8 8 8 8 5 Average Carried 6 | 3 7 8 7 3 Final Capacity 8 | 8 8 8 5 5 Final Carried 8 | 8 8 8 5 1 Class Distribution -------------------- 84% | Mutant 15% | Scavenger-Scout Dominant Class ---------------- Mutant | -10/Materials Mutant | -10/Mines Mutant | -9/Materials Mutant | -8/Materials Resources | -11 -10 -10 -9 -8 ----------- Run | Scr Mat Min Mat Mat Matter Collected 325 | 260 29 36 . . Remotely . | . . . . . Salvage Created 338 | 176 144 . 18 . Parts 24 | 12 7 . 5 . Haulers Intercepted . | . . . . . Recyclers Shooed . | . . . . . Parts Field Recycled . | . . . . . Retrieved Matter . | . . . . . Parts Self-Destructed . | . . . . . Prevented . | . . . . . Kills | -11 -10 -10 -9 -8 ------- Run | Scr Mat Min Mat Mat Combat Hostiles Destroyed 3 | . . . 3 . AOE 3 | . . . 3 . Classes Destroyed 5 | 3 1 . 1 . Worker 2 | 2 . . . . Tunneler 3 | 3 . . . . Recycler 2 | 1 1 . . . Watcher 2 | . 2 . . . Swarmer 3 | . . . 3 . Best Kill Streak 3 | 3 1 . 3 . Combat Bots Only 3 | . . . 3 . Max Kills in Single Turn 3 | 1 1 . 3 . Gunslinging . | . . . . . Exploded 3 | . . . 3 . Melee . | . . . . . Uniques/NPCs Destroyed . | . . . . . Combat | -11 -10 -10 -9 -8 -------- Run | Scr Mat Min Mat Mat Damage Taken 1604 | . 32 57 706 809 Core 898 | . . 16 323 559 Absorbed by Shields . | . . . . . Regen/Repaired (Parts) 15 | . . . . 15 Core Remaining (%) 70 | 100 . 93 19 . Volleys Fired 40 | 20 14 . 5 1 Largest 2 | 1 2 . 2 1 Hottest 76 | 40 60 . 76 36 Shots Fired 49 | 20 22 . 6 1 Gun 47 | 20 22 . 5 . Cannon . | . . . . . Launcher 2 | . . . 1 1 Special . | . . . . . Kinetic 9 | . 9 . . . Thermal 38 | 20 13 . 5 . Explosive 2 | . . . 1 1 Electromagnetic . | . . . . . Robot Hit Streak 8 | 8 5 . 1 . Robot Miss Streak 2 | 1 2 . 2 . Penetration Max . | . . . . . Secondary Targets . | . . . . . Shots Hit Robots 32 | 18 12 . 2 . Core Hits 16 | 7 5 . 4 . Critical Kills . | . . . . . Critical Parts Destroyed . | . . . . . Critical Strikes . | . . . . . Melee Attacks . | . . . . . Impact . | . . . . . Slashing . | . . . . . Piercing . | . . . . . Sneak Attacks . | . . . . . Combat Hostiles . | . . . . . Follow-up Attacks . | . . . . . Damage Inflicted 539 | 198 125 . 197 19 Guns 333 | 198 125 . 10 . Cannons . | . . . . . Explosions 166 | . . . 166 . Melee . | . . . . . Ramming 40 | . . . 21 19 Kinetic 24 | . 24 . . . Thermal 309 | 198 101 . 10 . Explosive 166 | . . . 166 . Electromagnetic . | . . . . . Impact . | . . . . . Slashing . | . . . . . Piercing . | . . . . . Highest Corruption 2 | . . . . 2 Average Corruption 2 | . . . . 2 Corruption Purged . | . . . . . Corruption Blocked . | . . . . . Overload Shots . | . . . . . Overflow Damage 10 | . . . 10 . Projectiles . | . . . . . Explosions 10 | . . . 10 . Melee . | . . . . . Knockbacks . | . . . . . Impact . | . . . . . Kinetic . | . . . . . Secondary . | . . . . . Self-Inflicted Damage 17 | . . . 9 8 Shots . | . . . . . Rammed 10 | . . . 6 4 Targets Rammed 10 | . . . 6 4 Kicked . | . . . . . Crushed . | . . . . . Highest Temperature 40 | 20 40 . 12 14 Average Temperature 17 | 20 20 . 5 14 Received Heat Transfer 618 | . . 33 306 279 Siege Activations . | . . . . . Robots Corrupted . | . . . . . Combat Hostiles . | . . . . . Parts Fried . | . . . . . Impact Corruptions . | . . . . . Robots Melted . | . . . . . Combat Hostiles . | . . . . . Parts Melted 1 | . 1 . . . Heat Transferred 700 | 450 225 . 25 . Parts Sabotaged . | . . . . . Parts Stolen . | . . . . . Parts Stripped . | . . . . . Power Chain Reactions . | . . . . . Missiles Intercepted . | . . . . . Alert | -11 -10 -10 -9 -8 ------- Run | Scr Mat Min Mat Mat Peak Influence 260 | 30 90 64 260 216 Initial 109 | . 19 34 24 109 Average 99 | 8 55 50 141 150 Maximum Alert Level 1 | . . . 1 1 Low Security (%) 94 | 100 100 100 87 92 Level 1 5 | . . . 12 7 Level 2 . | . . . . . Level 3 . | . . . . . Level 4 . | . . . . . Level 5 . | . . . . . High Security . | . . . . . Max Security . | . . . . . Squads Dispatched 3 | . 1 . . 2 Investigation . | . . . . . Extermination . | . . . . . Reinforcement 3 | . 1 . . 2 Assault . | . . . . . Garrison . | . . . . . Intercept . | . . . . . Searches Triggered . | . . . . . Construction Impeded . | . . . . . Haulers Reinforced . | . . . . . Active Scanning Responses . | . . . . . Cargo Convoy Interrupts . | . . . . . Stealth | -11 -10 -10 -9 -8 --------- Run | Scr Mat Min Mat Mat Distress Signals 4 | . . . 4 . Communications Jammed . | . . . . . Distress Signals . | . . . . . Times Spotted 54 | . 7 2 19 26 Peak Tracking Total 15 | . 3 2 7 15 Tactical Retreats 5 | . . 1 2 2 Traps | -11 -10 -10 -9 -8 ------- Run | Scr Mat Min Mat Mat Traps Triggered 1 | . . . . 1 Indirectly . | . . . . . Trap Hack Attempts . | . . . . . Triggered . | . . . . . Disarmed . | . . . . . Reprogrammed . | . . . . . Reused . | . . . . . Traps Extracted . | . . . . . Installed . | . . . . . Triggered . | . . . . . Machines | -11 -10 -10 -9 -8 ---------- Run | Scr Mat Min Mat Mat Machines Disabled . | . . . . . Max in Single Turn . | . . . . . Machines Sabotaged . | . . . . . Garrisons Compromised . | . . . . . Overloaded Fab Kills . | . . . . . Hacking | -11 -10 -10 -9 -8 --------- Run | Scr Mat Min Mat Mat Machines Accessed 6 | . 3 . . 3 Terminals 4 | . 3 . . 1 Fabricators . | . . . . . Repair Stations 1 | . . . . 1 Recycling Units . | . . . . . Scanalyzers 1 | . . . . 1 Garrison Access . | . . . . . Total Hacks 18 | . 6 . . 12 Successful 16 | . 5 . . 11 Failed 2 | . 1 . . 1 Catastrophic . | . . . . . Database Lockouts . | . . . . . Manual . | . . . . . Terminals 9 | . 6 . . 3 Fabricators . | . . . . . Repair Stations 2 | . . . . 2 Recycling Units . | . . . . . Scanalyzers 7 | . . . . 7 Garrison Access . | . . . . . Terminal Hacks 7 | . 5 . . 2 Locate Traps 2 | . 1 . . 1 Dispatch Records 1 | . 1 . . . Maintenance Status 1 | . 1 . . . Surveillance Status 1 | . 1 . . . Hauler Manifests 1 | . 1 . . . Zone Layout 1 | . . . . 1 Fabricator Hacks . | . . . . . Repair Station Hacks 2 | . . . . 2 Scan Component 1 | . . . . 1 Repair 1 | . . . . 1 Recycling Unit Hacks . | . . . . . Scanalyzer 7 | . . . . 7 Insert Component 3 | . . . . 3 Analyze 4 | . . . . 4 Garrison Access Hacks . | . . . . . Unauthorized Hacks . | . . . . . Terminals . | . . . . . Fabricators . | . . . . . Repair Stations . | . . . . . Recycling Units . | . . . . . Scanalyzers . | . . . . . Garrison Access . | . . . . . Data Cores Recovered . | . . . . . Used . | . . . . . Hacking Detections 3 | . 2 . . 1 Full Trace Events . | . . . . . Feedback Events . | . . . . . Feedback Blocked . | . . . . . Robot Schematics Acquired . | . . . . . Robots Built . | . . . . . Authchips . | . . . . . Time . | . . . . . Total Robot Build Rating . | . . . . . Part Schematics Acquired 3 | . . . . 3 Parts Built . | . . . . . Authchips . | . . . . . Time . | . . . . . Total Part Build Rating . | . . . . . Parts Repaired 1 | . . . . 1 Time 26 | . . . . 26 Parts Recycled . | . . . . . Recycled Matter . | . . . . . Retrieved Matter . | . . . . . Retrieved Components . | . . . . . Parts Scanalyzed 3 | . . . . 3 Part Schematics Acquired 3 | . . . . 3 Parts Damaged . | . . . . . Bothacking | -11 -10 -10 -9 -8 ------------ Run | Scr Mat Min Mat Mat Used RIF Installer . | . . . . . Robots Hacked . | . . . . . Non-combat . | . . . . . Combat . | . . . . . Robot Hacks Applied . | . . . . . Relay Couplers Released . | . . . . . Fabnet Peak Effective % . | . . . . . Robots Rewired . | . . . . . Allies Hacked . | . . . . . Hacks Repelled . | . . . . . Allies | -11 -10 -10 -9 -8 -------- Run | Scr Mat Min Mat Mat Total Allies . | . . . . . Largest Group . | . . . . . Highest-Rated Group . | . . . . . Highest-Rated Ally . | . . . . . Total Orders . | . . . . . Ally Attacks . | . . . . . Total Damage . | . . . . . Kills . | . . . . . Allies Corrupted . | . . . . . Allies Melted . | . . . . . Intel | -11 -10 -10 -9 -8 ------- Run | Scr Mat Min Mat Mat Robot Analysis Total . | . . . . . Derelict Logs Recovered . | . . . . . Drone Launches . | . . . . . Drone Recoveries . | . . . . . Exploration | -11 -10 -10 -9 -8 ------------- Run | Scr Mat Min Mat Mat Turns Passed 1180 | 128 303 92 379 278 Spaces Moved 1316 | 89 306 159 417 345 Core 301 | 23 . . 119 159 Treads . | . . . . . Legs . | . . . . . Wheels 424 | 66 306 . 52 . Hover 591 | . . 159 246 186 Flight . | . . . . . Fastest Speed 50 | 50 80 56 50 50 Average Speed 68 | 76 80 56 74 56 Slowest Speed 250 | 200 80 56 250 120 Overloaded Moves . | . . . . . Propulsion Burnouts . | . . . . . Robots Hopped . | . . . . . Cave-ins Triggered . | . . . . . Exploration Rate (%) 33 | 5 45 50 29 37 Regions Visited 4 Branch Regions 1 Pre-discovered Areas . | . . . . . Known Exits Taken 3 | . 1 1 1 . Unknown Exits Taken 1 | 1 . . . . Scrap Searched 1 | . . 1 . . Spaces Dug 11 | . . . . 11 Terrain Destroyed 23 | . . . 12 11 Melee . | . . . . . Projectile . | . . . . . AOE 23 | . . . 12 11 Terrain Rammed . | . . . . . Walls Destroyed . | . . . . . Machines Disabled . | . . . . . Actions | -11 -10 -10 -9 -8 --------- Run | Scr Mat Min Mat Mat Total 1536 | 126 347 160 475 428 Wait 104 | 3 10 . 25 66 Move 1312 | 88 305 158 416 345 Hop . | . . . . . Pick Up 22 | 9 7 . 4 2 Fast Attach 13 | 5 1 . 4 3 Attach 11 | 1 2 . 4 4 Detach 1 | . . . 1 . Swap 5 | . 1 2 2 . Drop 18 | . 7 . 8 3 Fire 40 | 20 14 . 5 1 Melee . | . . . . . Ram 10 | . . . 6 4 Kick . | . . . . . Crush . | . . . . . Escape Stasis . | . . . . . Rewire . | . . . . . Trap . | . . . . . Miscellaneous . | . . . . . Route ------- -11/Scrapyard -10/Materials -10/Mines -9/Materials -8/Materials History --------- Turn | Location | Event 4 | -11/Scrapyard | Discovered new exit (range 15) 129 | -11/Scrapyard | Entered Materials 307 | -10/Materials | Build established: Mutant 395 | -10/Materials | Discovered new exit (range 13) 407 | -10/Materials | Identified exit to Mines 432 | -10/Materials | Entered Mines 520 | -10/Mines | Discovered new exit (range 7) 523 | -10/Mines | Identified exit to Materials 524 | -10/Mines | Entered Materials 524 | -9/Materials | Evolved 2 slots: Utility x2 800 | -9/Materials | Lost 3 parts (2n1w) 844 | -9/Materials | Core integrity fell below 50% 897 | -9/Materials | Core integrity fell below 20% 897 | -9/Materials | Discovered new exit (range 15) 902 | -9/Materials | Identified exit to Materials 903 | -9/Materials | Entered another Materials area 903 | -8/Materials | Evolved 2 slots: Utility x2 962 | -8/Materials | Repaired Lgt. Armor Plating 1158 | -8/Materials | Core integrity fell below 50% 1168 | -8/Materials | Lost 5 parts (1p1n3u) 1180 | -8/Materials | Core integrity fell below 20% 1181 | -8/Materials | Destroyed by G-47 Trooper with Particle Gun Last Messages --------------- Scan incomplete, additional scanning required. >>Scanalyze Scanning: Seismic Detector... Schematic downloaded. >>Insert(Trap Scanner) Scanning Trap Scanner... Ready to analyze. >>Scanalyze Scanning: Trap Scanner... Schematic downloaded. 01176_ Critical hit (Burn: +37). 01177_ C-30 ARC bursts open, deploying its payload. 01177_ B-36 Bruiser unfolds itself. 01177_ G-47 Trooper unfolds itself. 01177_ K-01 Serf collects debris. 01178_ Trap Scanner destroyed. 01178_ R-06 Scavenger collects Lgt. Ion Engine. 01179_ Critical hit (Burn: +37). 01181_ K-01 Serf cleans the Fusion Modulator. 01181_ K-01 Serf collects debris. Map ----- +----------------------------------------------------+ | ?????????????????????????????????????????????????? | | ?????????????????????????????????????????????????? | | ?????????????????????????????????????????????????? | | ?????????????????????????????????????????????????? | | ????????????????????????##########???????????????? | | ????????????????????????# #???????????????? | | ????????????????????????# "" #???????????????? | | ????????????????????????# """#???????????????? | | ????????????????????????# S"#???????????????? | | ????????????????????????#! #???????????????? | | ????????????????????????# """ #???????????????? | | ????????????????????????# """ #???????????????? | | ????????????????????????# """ #?######????????? | | ????????????????#+#?????# #?# #????????? | | ????????????????? ????#####/####?# "" #????????? | | ????????????????? #?????# #??# "Y #????????? | | ????????????????? ?????# #### "" #????????? | | ?????????????????? ????# / #????????? | | ?????????????????? ??# # #????????? | | ???????????????#? """ ?# # #????????? | | ???????????????# """ ! ?# / #????????? | | ???????????????# """ ?# """ # #????????? | | ???????????????+ ?# """r ######????????? | | ???????????????# a ?# ! """ #?????????????? | | ???????????????#a """ ## r #######???????? | | ???????????????# """ @ #! ! #???????? | | ???????????????# """ Y b # #???????? | | ???????????????# uu # #???????? | | ???????????????# u g w g% # !!! #???????? | | ???????????????# """ [!g # !!! #???????? | | ???????????????# """ [k # !!! #???????? | | ???????????????#^ """o %!! + #???????? | | ???????????????# ###############???????? | | ???????????????# ########??????????????? | | ???????????????# """ #! ##?????????????? | | ???????????????# """ # #?????????????? | | #######????????# """ % # #??????????????? | | #####????# k + [[ #??????????????? | | T # ###### # [! #??????????????? | | + T # #??????????????? | | # #######/###### ########??????????????? | | ## ##???? ???# #?????????????????????? | | ## #??? ! ?# ????????????????????? | | ######## #??# ## ??????????????????? | | ??######+#### """ """ ## ?????????????????? | | ??# # """ """ ## +???????????????? | | ??# !%= + """ """ ##+######### ??????????????? | | ??# # #????????????#?????????????? | | ??# #? ! #??????????????????????????? | | ??###/#################??????????????????????????? | +----------------------------------------------------+ Best States ------------- Heat Dissipation 31 Energy Generation 14 Energy Capacity 280 Matter Stores 300 Matter Capacity 300 Sight Range 18 Robot Scan Range 14 Terrain Scan Density 10 ECM Strength 1 Armor Coverage 150 Evasion (%) 53 Defensive Hacking 10 Item Schematics ----------------- ECM Suite | -8/Materials | Scanalyzed Seismic Detector | -8/Materials | Scanalyzed Trap Scanner | -8/Materials | Scanalyzed Robot Schematics ------------------ None Fabricated ------------ Nothing Alien Tech Used ----------------- None Achievements -------------- None Challenges ------------ None Game ------ Seed AssembledBackupExoskeleton Manual? 0 Play Time 00:21:44 Cumulative 27.6 hours Start 2022.05.09 @ 04:56:53 End 2022.05.09 @ 05:16:30 Sessions 1 Manual Loads 0 Difficulty Rogue Special Mode None Game No. 53 Rogue 53 Adventurer 0 Explorer 0 Win Type - Total 0 Types 0/0/0/0/0/0/0/0/0 Lore% 23 Gallery% 30 Achievement% 24 Wizard Run 0 Options --------- ASCII 0 Keyboard 0 Movement Numpad Keybinds 0 Fullscreen 2 Font 18/SmallcapsGlow Map View 76x50 Tactical HUD 1 Map Filters NONE Filters NONE Steam 1 RUN: bc8f4c81-0d9a-45b6-a76c-581ed432f027